[Event "Mercoledì sera Rapid"]
[Site "Chess.com"]
[Date "2020.04.22"]
[Round "3"]
[White "pedrak"]
[Black "sergiodone"]
[Result "0-1"]
[WhiteElo "1675"]
[BlackElo "1439"]
[TimeControl "720+3"]
[EndTime "12:40:13 PDT"]
[Termination "sergiodone ha vinto per abbandono"]

1. d4 {[%clk 0:12:01]} 1... Nf6 {[%clk 0:11:55]} 2. Nf3 {[%clk 0:12:01.9]} 2...
c5 {[%clk 0:11:52.9]} 3. e3 {[%clk 0:12:00.4]} 3... b6 {[%clk 0:11:52.6]} 4. c3
{[%clk 0:12:01.2]} 4... d6 {[%clk 0:11:53.7]} 5. Nbd2 {[%clk 0:12:02.2]} 5...
Bb7 {[%clk 0:11:55]} 6. Bd3 {[%clk 0:12:03]} 6... Nbd7 {[%clk 0:11:56.4]} 7. Qe2
{[%clk 0:12:02.8]} 7... g6 {[%clk 0:11:58]} 8. O-O {[%clk 0:11:54.3]} 8... Bg7
{[%clk 0:11:59.7]} 9. Re1 {[%clk 0:11:51.6]} 9... O-O {[%clk 0:12:00.3]} 10. Nf1
{[%clk 0:11:48.9]} 10... Rb8 {[%clk 0:11:42.9]} 11. e4 {[%clk 0:11:47]} 11...
Qc7 {[%clk 0:11:41.8]} 12. Bf4 {[%clk 0:11:39.9]} 12... e5 {[%clk 0:11:34.2]}
13. dxe5 {[%clk 0:11:37]} 13... dxe5 {[%clk 0:11:35.3]} 14. Bg3 {[%clk
0:11:20.1]} 14... Rfd8 {[%clk 0:11:17]} 15. h3 {[%clk 0:11:17]} 15... Bc6 {[%clk
0:11:08.3]} 16. Rad1 {[%clk 0:11:11.1]} 16... b5 {[%clk 0:11:02.5]} 17. b3
{[%clk 0:11:05]} 17... Qb7 {[%clk 0:11:03.9]} 18. c4 {[%clk 0:10:29.5]} 18... a6
{[%clk 0:11:01.6]} 19. Bc2 {[%clk 0:10:25.7]} 19... b4 {[%clk 0:10:41.5]} 20.
N3h2 {[%clk 0:10:17.3]} 20... Nh5 {[%clk 0:10:24.5]} 21. f3 {[%clk 0:10:15.6]}
21... Nxg3 {[%clk 0:10:25.6]} 22. Nxg3 {[%clk 0:10:16.9]} 22... Nf6 {[%clk
0:10:18.8]} 23. Ngf1 {[%clk 0:10:07.3]} 23... Qc7 {[%clk 0:10:14]} 24. Ne3
{[%clk 0:10:07.9]} 24... Rd4 {[%clk 0:10:07.5]} 25. Nd5 {[%clk 0:10:05.7]} 25...
Bxd5 {[%clk 0:10:08.7]} 26. exd5 {[%clk 0:10:02.9]} 26... Rxd1 {[%clk
0:09:18.5]} 27. Rxd1 {[%clk 0:09:51.6]} 27... Qd6 {[%clk 0:09:18.8]} 28. Nf1
{[%clk 0:09:47.4]} 28... Re8 {[%clk 0:09:15.7]} 29. Be4 {[%clk 0:09:44.7]} 29...
Nh5 {[%clk 0:09:06.6]} 30. Qf2 {[%clk 0:08:29.2]} 30... f5 {[%clk 0:09:06.5]}
31. Bc2 {[%clk 0:08:28.7]} 31... e4 {[%clk 0:08:39.4]} 32. fxe4 {[%clk
0:07:45.5]} 32... Bd4 {[%clk 0:08:33.6]} 33. Rxd4 {[%clk 0:07:44.7]} 33... cxd4
{[%clk 0:08:34.1]} 34. Qxd4 {[%clk 0:07:46.5]} 34... fxe4 {[%clk 0:07:32.8]} 35.
Bxe4 {[%clk 0:07:07.6]} 35... Qf4 {[%clk 0:07:32.8]} 36. d6 {[%clk 0:04:10.5]}
36... Qxe4 {[%clk 0:07:32.2]} 37. d7 {[%clk 0:04:10.6]} 37... Qxd4+ {[%clk
0:07:22.5]} 0-1

[Event "Mercoledì sera Rapid"]
[Site "Chess.com"]
[Date "2020.04.22"]
[Round "3"]
[White "BAKR1980"]
[Black "lionblu1"]
[Result "1-0"]
[WhiteElo "1571"]
[BlackElo "1395"]
[TimeControl "720+3"]
[EndTime "12:43:46 PDT"]
[Termination "BAKR1980 ha vinto per abbandono"]

1. e4 {[%clk 0:12:02.9]} 1... c5 {[%clk 0:11:59.9]} 2. Nf3 {[%clk 0:12:03.5]}
2... d6 {[%clk 0:12:00.2]} 3. d4 {[%clk 0:12:05.9]} 3... cxd4 {[%clk 0:12:01.4]}
4. Nxd4 {[%clk 0:12:07.9]} 4... Nf6 {[%clk 0:12:01.7]} 5. Nc3 {[%clk 0:12:09.3]}
5... a6 {[%clk 0:12:03.3]} 6. Be3 {[%clk 0:12:07.5]} 6... e5 {[%clk 0:12:02.9]}
7. Nb3 {[%clk 0:11:51.3]} 7... Be7 {[%clk 0:12:01.4]} 8. Bd3 {[%clk 0:11:50.4]}
8... Nbd7 {[%clk 0:11:52.3]} 9. f4 {[%clk 0:11:24.2]} 9... b5 {[%clk 0:11:41.2]}
10. O-O {[%clk 0:11:14.4]} 10... O-O {[%clk 0:11:41.3]} 11. fxe5 {[%clk
0:10:56.9]} 11... dxe5 {[%clk 0:11:36.9]} 12. Nd5 {[%clk 0:10:57.9]} 12... Nxd5
{[%clk 0:11:22.5]} 13. exd5 {[%clk 0:10:59]} 13... Nf6 {[%clk 0:11:11.2]} 14. c4
{[%clk 0:10:27.8]} 14... Bb7 {[%clk 0:10:57]} 15. Nc5 {[%clk 0:10:26]} 15... Qc7
{[%clk 0:10:39.5]} 16. Nxb7 {[%clk 0:10:17.9]} 16... Qxb7 {[%clk 0:10:39.5]} 17.
b3 {[%clk 0:10:06.2]} 17... Rac8 {[%clk 0:10:05.3]} 18. Qf3 {[%clk 0:10:00]}
18... Bc5 {[%clk 0:08:59]} 19. Bxc5 {[%clk 0:09:50.6]} 19... Rxc5 {[%clk
0:08:59.7]} 20. Qg3 {[%clk 0:09:42.3]} 20... Qc7 {[%clk 0:08:43]} 21. Rxf6
{[%clk 0:09:40.3]} 21... e4 {[%clk 0:08:24.1]} 22. d6 {[%clk 0:09:36.3]} 22...
Qd7 {[%clk 0:08:05.8]} 23. Bxe4 {[%clk 0:09:33.4]} 23... bxc4 {[%clk 0:07:50.3]}
24. Qh4 {[%clk 0:08:55.4]} 24... h6 {[%clk 0:07:07.2]} 25. Qg3 {[%clk
0:08:08.4]} 25... Rg5 {[%clk 0:07:02.1]} 26. Qf2 {[%clk 0:07:08.8]} 26... gxf6
{[%clk 0:06:40.4]} 27. Qxf6 {[%clk 0:07:09.6]} 27... Qg4 {[%clk 0:04:54.3]} 28.
Qxh6 {[%clk 0:07:05.2]} 28... Rh5 {[%clk 0:04:04.3]} 29. Bh7+ {[%clk 0:06:52.2]}
29... Kh8 {[%clk 0:04:03.1]} 30. Qxf8+ {[%clk 0:06:52.9]} 30... Kxh7 {[%clk
0:04:04.8]} 31. Qxf7+ {[%clk 0:06:53.8]} 31... Kh6 {[%clk 0:03:35.5]} 32. Qf6+
{[%clk 0:06:40.5]} 32... Kh7 {[%clk 0:03:31.9]} 33. Re1 {[%clk 0:06:29.1]} 33...
Rf5 {[%clk 0:02:04]} 34. Re7+ {[%clk 0:06:00.8]} 34... Kg8 {[%clk 0:02:00.8]}
35. Re8+ {[%clk 0:05:51.3]} 35... Kh7 {[%clk 0:02:02]} 1-0

[Event "Mercoledì sera Rapid"]
[Site "Chess.com"]
[Date "2020.04.22"]
[Round "3"]
[White "Mrtre7"]
[Black "fausto2p"]
[Result "0-1"]
[WhiteElo "1262"]
[BlackElo "1051"]
[TimeControl "720+3"]
[EndTime "12:46:59 PDT"]
[Termination "fausto2p ha vinto per scaccomatto"]

1. d4 {[%clk 0:12:02.9]} 1... d5 {[%clk 0:11:59.5]} 2. c4 {[%clk 0:12:05]} 2...
c6 {[%clk 0:11:59.1]} 3. Nc3 {[%clk 0:12:06.1]} 3... Nf6 {[%clk 0:11:58.8]} 4.
Nf3 {[%clk 0:11:59.2]} 4... e6 {[%clk 0:11:55.1]} 5. e3 {[%clk 0:11:57.6]} 5...
Bb4 {[%clk 0:11:53.7]} 6. Bd3 {[%clk 0:11:56.3]} 6... dxc4 {[%clk 0:11:43.5]} 7.
Bxc4 {[%clk 0:11:57.7]} 7... b5 {[%clk 0:11:44.3]} 8. Bd3 {[%clk 0:11:59.5]}
8... Qa5 {[%clk 0:11:16.1]} 9. Bd2 {[%clk 0:11:46.6]} 9... Qc7 {[%clk
0:10:31.1]} 10. O-O {[%clk 0:11:45.5]} 10... O-O {[%clk 0:10:17.8]} 11. e4
{[%clk 0:11:47.1]} 11... Bxc3 {[%clk 0:10:09.4]} 12. bxc3 {[%clk 0:11:31.6]}
12... Nbd7 {[%clk 0:09:43.7]} 13. e5 {[%clk 0:11:33.2]} 13... Nd5 {[%clk
0:09:43.6]} 14. Qe2 {[%clk 0:11:21.2]} 14... f5 {[%clk 0:09:03.7]} 15. exf6
{[%clk 0:11:16]} 15... N7xf6 {[%clk 0:09:04.7]} 16. Ng5 {[%clk 0:10:40.2]} 16...
Qd6 {[%clk 0:08:36.8]} 17. Ne4 {[%clk 0:10:19.4]} 17... Nxe4 {[%clk 0:08:28.7]}
18. Qxe4 {[%clk 0:10:21.1]} 18... Nf6 {[%clk 0:08:25.1]} 19. Qh4 {[%clk
0:09:59.8]} 19... e5 {[%clk 0:06:12.3]} 20. Rfe1 {[%clk 0:09:05.5]} 20... exd4
{[%clk 0:05:54.4]} 21. cxd4 {[%clk 0:09:02.8]} 21... c5 {[%clk 0:05:39]} 22.
Bxb5 {[%clk 0:08:22.8]} 22... cxd4 {[%clk 0:05:36.7]} 23. Rad1 {[%clk
0:07:59.3]} 23... Bb7 {[%clk 0:05:30.6]} 24. a3 {[%clk 0:07:30.6]} 24... Qd5
{[%clk 0:05:30.8]} 25. Bf1 {[%clk 0:07:17.6]} 25... Ne4 {[%clk 0:04:43.3]} 26.
Bb4 {[%clk 0:06:21.2]} 26... Rf7 {[%clk 0:04:01.4]} 27. Rc1 {[%clk 0:05:36]}
27... Nxf2 {[%clk 0:02:54.3]} 28. Qg3 {[%clk 0:05:10.3]} 28... Ne4 {[%clk
0:02:48.9]} 29. Qg4 {[%clk 0:03:33.5]} 29... d3 {[%clk 0:02:09.2]} 30. Red1
{[%clk 0:03:07.5]} 30... Qd4+ {[%clk 0:01:53.4]} 31. Kh1 {[%clk 0:02:47.5]}
31... Nf2+ {[%clk 0:01:54.6]} 32. Kg1 {[%clk 0:02:49.4]} 32... Nxg4+ {[%clk
0:01:56.1]} 33. Kh1 {[%clk 0:02:51.6]} 33... Nf2+ {[%clk 0:01:57]} 34. Kg1
{[%clk 0:02:53.2]} 34... Nxd1+ {[%clk 0:01:58]} 35. Kh1 {[%clk 0:02:53.9]} 35...
Rxf1# {[%clk 0:01:33.4]} 0-1

[Event "Mercoledì sera Rapid"]
[Site "Chess.com"]
[Date "2020.04.22"]
[Round "4"]
[White "lionblu1"]
[Black "Lavolpeneldeserto"]
[Result "1-0"]
[WhiteElo "1399"]
[BlackElo "729"]
[TimeControl "720+3"]
[EndTime "12:57:45 PDT"]
[Termination "lionblu1 ha vinto per scaccomatto"]

1. d4 {[%clk 0:12:02.9]} 1... d5 {[%clk 0:11:36.6]} 2. c4 {[%clk 0:11:53.5]}
2... Nf6 {[%clk 0:11:34.4]} 3. cxd5 {[%clk 0:11:54.2]} 3... Nxd5 {[%clk
0:11:34.9]} 4. Nf3 {[%clk 0:11:55.7]} 4... Nc6 {[%clk 0:11:23.4]} 5. e4 {[%clk
0:11:55.9]} 5... Nf6 {[%clk 0:11:18.7]} 6. Nc3 {[%clk 0:11:52.8]} 6... e6 {[%clk
0:10:48.8]} 7. Bb5 {[%clk 0:11:52.2]} 7... Bd7 {[%clk 0:10:48.4]} 8. Bg5 {[%clk
0:11:44.5]} 8... Bb4 {[%clk 0:10:40.3]} 9. e5 {[%clk 0:11:39]} 9... h6 {[%clk
0:10:29.8]} 10. Bh4 {[%clk 0:11:25.7]} 10... g5 {[%clk 0:09:23.8]} 11. exf6
{[%clk 0:11:20.7]} 11... gxh4 {[%clk 0:09:22]} 12. O-O {[%clk 0:10:48.5]} 12...
Qxf6 {[%clk 0:09:12.2]} 13. Ne4 {[%clk 0:10:31.6]} 13... Qf4 {[%clk 0:08:46.4]}
14. Qe2 {[%clk 0:09:54.1]} 14... h3 {[%clk 0:08:14.9]} 15. g3 {[%clk 0:09:54.1]}
15... Qf5 {[%clk 0:07:51.7]} 16. Nh4 {[%clk 0:09:42.7]} 16... Qxb5 {[%clk
0:07:49.3]} 17. Qxb5 {[%clk 0:09:37.6]} 17... O-O-O {[%clk 0:07:30.3]} 18. a3
{[%clk 0:09:19.8]} 18... Ba5 {[%clk 0:06:59.8]} 19. Nc5 {[%clk 0:08:45.8]} 19...
a6 {[%clk 0:06:55.9]} 20. Qxb7# {[%clk 0:08:44.3]} 1-0

[Event "Mercoledì sera Rapid"]
[Site "Chess.com"]
[Date "2020.04.22"]
[Round "4"]
[White "sirmale49"]
[Black "SanSecondoPR"]
[Result "0-1"]
[WhiteElo "1387"]
[BlackElo "1275"]
[TimeControl "720+3"]
[EndTime "13:04:13 PDT"]
[Termination "SanSecondoPR ha vinto per abbandono"]

1. f4 {[%clk 0:12:01]} 1... d5 {[%clk 0:11:55.4]} 2. Nf3 {[%clk 0:12:01.8]} 2...
Nc6 {[%clk 0:11:53.8]} 3. e3 {[%clk 0:12:02.9]} 3... Bg4 {[%clk 0:11:48.1]} 4.
g3 {[%clk 0:12:04.3]} 4... e5 {[%clk 0:11:45.9]} 5. h3 {[%clk 0:12:01.8]} 5...
Bxf3 {[%clk 0:11:25]} 6. Qxf3 {[%clk 0:12:00.6]} 6... exf4 {[%clk 0:11:25.4]} 7.
Bb5 {[%clk 0:11:44.9]} 7... Ne7 {[%clk 0:11:20.9]} 8. O-O {[%clk 0:11:35.8]}
8... Qd6 {[%clk 0:11:00.8]} 9. d4 {[%clk 0:11:24.5]} 9... O-O-O {[%clk
0:10:57.1]} 10. Nc3 {[%clk 0:11:16.1]} 10... g5 {[%clk 0:10:46.8]} 11. a4 {[%clk
0:10:52.3]} 11... f5 {[%clk 0:10:45.6]} 12. b3 {[%clk 0:10:48.7]} 12... Qg6
{[%clk 0:10:31.4]} 13. Ba3 {[%clk 0:09:06.3]} 13... h5 {[%clk 0:10:27.3]} 14.
Bxe7 {[%clk 0:09:01.8]} 14... Nxe7 {[%clk 0:10:23.8]} 15. g4 {[%clk 0:08:51]}
15... hxg4 {[%clk 0:10:21.5]} 16. hxg4 {[%clk 0:08:37.2]} 16... fxg4 {[%clk
0:10:11.5]} 17. Qxg4+ {[%clk 0:08:36.9]} 17... Kb8 {[%clk 0:10:02.4]} 18. exf4
{[%clk 0:08:00.3]} 18... Rh4 {[%clk 0:09:56.6]} 19. Qxg5 {[%clk 0:07:46.7]}
19... Rh3 {[%clk 0:09:23.1]} 20. Qxg6 {[%clk 0:07:36.4]} 20... Nxg6 {[%clk
0:09:18.8]} 21. Ne2 {[%clk 0:07:29.7]} 21... Nh4 {[%clk 0:08:47.1]} 22. Bd3
{[%clk 0:07:05.9]} 22... Bd6 {[%clk 0:08:36.2]} 23. Bf5 {[%clk 0:06:27.1]} 23...
Rg8+ {[%clk 0:08:33]} 24. Kf2 {[%clk 0:05:52.3]} 24... Nxf5 {[%clk 0:07:54.4]}
25. Rg1 {[%clk 0:05:33]} 25... Re8 {[%clk 0:07:35.4]} 26. Ng3 {[%clk 0:05:01.3]}
26... Nxd4 {[%clk 0:06:56.9]} 27. Rae1 {[%clk 0:04:46]} 27... Rh2+ {[%clk
0:06:40.9]} 28. Kf1 {[%clk 0:04:35.8]} 28... Rxe1+ {[%clk 0:06:38.4]} 29. Kxe1
{[%clk 0:04:25.7]} 29... Nf3+ {[%clk 0:06:38.1]} 30. Kf1 {[%clk 0:04:26.6]}
30... Nxg1 {[%clk 0:06:38.2]} 31. Kxg1 {[%clk 0:04:27.9]} 31... Rxc2 {[%clk
0:06:37.2]} 0-1

[Event "Mercoledì sera Rapid"]
[Site "Chess.com"]
[Date "2020.04.22"]
[Round "4"]
[White "fausto2p"]
[Black "pedrak"]
[Result "0-1"]
[WhiteElo "1048"]
[BlackElo "1678"]
[TimeControl "720+3"]
[EndTime "13:06:30 PDT"]
[Termination "pedrak ha vinto per abbandono"]

1. d4 {[%clk 0:12:02.9]} 1... Nf6 {[%clk 0:11:55]} 2. c4 {[%clk 0:12:03.2]} 2...
d6 {[%clk 0:11:55]} 3. Nc3 {[%clk 0:12:04.3]} 3... Nbd7 {[%clk 0:11:55.6]} 4. e4
{[%clk 0:11:47.3]} 4... e5 {[%clk 0:11:55.9]} 5. d5 {[%clk 0:11:36.5]} 5... Be7
{[%clk 0:11:55.6]} 6. Nf3 {[%clk 0:11:33]} 6... O-O {[%clk 0:11:56.3]} 7. Be2
{[%clk 0:11:03.2]} 7... Nc5 {[%clk 0:11:56]} 8. Qc2 {[%clk 0:10:48.5]} 8... a5
{[%clk 0:11:54.4]} 9. O-O {[%clk 0:10:46.5]} 9... h6 {[%clk 0:11:52.7]} 10. h3
{[%clk 0:10:46.8]} 10... Nh7 {[%clk 0:11:53.5]} 11. Be3 {[%clk 0:10:16.6]} 11...
b6 {[%clk 0:11:47.4]} 12. a3 {[%clk 0:09:33.3]} 12... Bg5 {[%clk 0:11:46.9]} 13.
Bxc5 {[%clk 0:09:26.8]} 13... bxc5 {[%clk 0:11:46.2]} 14. Nxg5 {[%clk
0:09:01.5]} 14... Nxg5 {[%clk 0:11:40.7]} 15. b4 {[%clk 0:08:03.5]} 15... axb4
{[%clk 0:11:17.3]} 16. axb4 {[%clk 0:08:03.8]} 16... Rxa1 {[%clk 0:11:18.3]} 17.
Rxa1 {[%clk 0:08:02.4]} 17... cxb4 {[%clk 0:11:19.9]} 18. Na2 {[%clk 0:07:44.1]}
18... f5 {[%clk 0:10:50.1]} 19. Nxb4 {[%clk 0:07:41.2]} 19... Nxe4 {[%clk
0:10:38.2]} 20. Nc6 {[%clk 0:07:35.1]} 20... Qg5 {[%clk 0:10:34.6]} 21. Ra7
{[%clk 0:06:10.1]} 21... Qh4 {[%clk 0:10:19.1]} 22. Bf3 {[%clk 0:05:52.5]} 22...
Ng5 {[%clk 0:10:20]} 23. Ne7+ {[%clk 0:05:42.6]} 23... Kh7 {[%clk 0:10:16]} 24.
Qd3 {[%clk 0:04:12.6]} 24... e4 {[%clk 0:10:13.4]} 25. Qd4 {[%clk 0:03:31.9]}
25... Nxf3+ {[%clk 0:09:44.6]} 26. gxf3 {[%clk 0:03:29.3]} 26... Qxe7 {[%clk
0:09:43.4]} 27. fxe4 {[%clk 0:03:22.9]} 27... fxe4 {[%clk 0:09:42]} 28. Qd2
{[%clk 0:01:53.8]} 28... Bxh3 {[%clk 0:09:38]} 29. Ra3 {[%clk 0:01:03.6]} 29...
Rf3 {[%clk 0:09:25.6]} 30. Rxf3 {[%clk 0:00:59.1]} 30... exf3 {[%clk 0:09:26.2]}
31. Qd3+ {[%clk 0:00:57.1]} 31... Kg8 {[%clk 0:09:23.7]} 32. Qxf3 {[%clk
0:00:54.8]} 32... Qg5+ {[%clk 0:09:20.7]} 33. Kh2 {[%clk 0:00:51]} 33... Bf5
{[%clk 0:09:20]} 34. Qe2 {[%clk 0:00:35.5]} 34... Qf4+ {[%clk 0:09:06.7]} 35.
Kg1 {[%clk 0:00:33.2]} 35... Qe4 {[%clk 0:09:03.1]} 36. Qh5 {[%clk 0:00:18.8]}
36... Qg4+ {[%clk 0:08:51.5]} 37. Qxg4 {[%clk 0:00:19.3]} 37... Bxg4 {[%clk
0:08:52.9]} 38. Kf1 {[%clk 0:00:13.5]} 38... Bd1 {[%clk 0:08:53.2]} 39. Ke1
{[%clk 0:00:13.6]} 39... Bb3 {[%clk 0:08:54.7]} 0-1

[Event "Mercoledì sera Rapid"]
[Site "Chess.com"]
[Date "2020.04.22"]
[Round "4"]
[White "sergiodone"]
[Black "BAKR1980"]
[Result "0-1"]
[WhiteElo "1434"]
[BlackElo "1589"]
[TimeControl "720+3"]
[EndTime "13:07:09 PDT"]
[Termination "BAKR1980 ha vinto per abbandono"]

1. e4 {[%clk 0:11:56.1]} 1... e5 {[%clk 0:12:00.4]} 2. d4 {[%clk 0:11:56.5]}
2... exd4 {[%clk 0:11:52.8]} 3. Qxd4 {[%clk 0:11:56.7]} 3... Nc6 {[%clk
0:11:54]} 4. Qe3 {[%clk 0:11:58.4]} 4... d6 {[%clk 0:11:47]} 5. Nc3 {[%clk
0:11:58.5]} 5... Nf6 {[%clk 0:11:47.7]} 6. h3 {[%clk 0:11:58]} 6... Be7 {[%clk
0:11:48.7]} 7. Bd2 {[%clk 0:11:59.4]} 7... O-O {[%clk 0:11:50]} 8. O-O-O {[%clk
0:12:01.1]} 8... a6 {[%clk 0:11:51.4]} 9. f4 {[%clk 0:12:00.6]} 9... Re8 {[%clk
0:11:48.7]} 10. Nf3 {[%clk 0:11:28.9]} 10... b5 {[%clk 0:11:37.6]} 11. a3 {[%clk
0:11:20.7]} 11... b4 {[%clk 0:11:38.2]} 12. axb4 {[%clk 0:11:03.9]} 12... Nxb4
{[%clk 0:11:38.4]} 13. Qd4 {[%clk 0:11:01.9]} 13... c5 {[%clk 0:11:33.4]} 14.
Qf2 {[%clk 0:11:00]} 14... Qa5 {[%clk 0:11:34.2]} 15. Kb1 {[%clk 0:10:50.9]}
15... Nxe4 {[%clk 0:11:30.5]} 16. Qe2 {[%clk 0:10:24.5]} 16... Bf6 {[%clk
0:11:26.3]} 17. Qc4 {[%clk 0:10:09]} 17... Be6 {[%clk 0:11:09.5]} 18. Nd5 {[%clk
0:10:10.6]} 18... Bxd5 {[%clk 0:11:04.4]} 19. Bxb4 {[%clk 0:10:11.9]} 19... Qxb4
{[%clk 0:10:48.3]} 20. Qxb4 {[%clk 0:10:02.3]} 20... cxb4 {[%clk 0:10:46.4]} 21.
Rxd5 {[%clk 0:10:02.3]} 21... Nf2 {[%clk 0:10:46.6]} 22. Rg1 {[%clk 0:09:53.5]}
22... a5 {[%clk 0:10:23]} 23. Bd3 {[%clk 0:09:54.7]} 23... Nxd3 {[%clk
0:10:22.5]} 24. Rxd3 {[%clk 0:09:53.9]} 24... Re2 {[%clk 0:10:09.4]} 25. g4
{[%clk 0:09:47.9]} 25... a4 {[%clk 0:10:04]} 26. g5 {[%clk 0:09:49.3]} 26... Be7
{[%clk 0:10:04.6]} 27. Nd4 {[%clk 0:09:48.3]} 27... Rh2 {[%clk 0:10:03.1]} 28.
Nf5 {[%clk 0:09:39.2]} 28... Bf8 {[%clk 0:09:56.9]} 29. h4 {[%clk 0:09:40.7]}
29... Rc8 {[%clk 0:09:45.6]} 30. h5 {[%clk 0:08:42.8]} 30... Rcxc2 {[%clk
0:09:37.3]} 31. Nd4 {[%clk 0:08:13.5]} 31... Rxb2+ {[%clk 0:09:38]} 32. Kc1
{[%clk 0:08:03.5]} 32... Ra2 {[%clk 0:09:32.6]} 33. Kb1 {[%clk 0:07:07.8]} 33...
Rab2+ {[%clk 0:09:31.1]} 34. Kc1 {[%clk 0:07:08.9]} 34... a3 {[%clk 0:09:27.2]}
35. Rb3 {[%clk 0:07:10.5]} 35... Rxb3 {[%clk 0:09:19.2]} 36. Nxb3 {[%clk
0:07:10.9]} 36... Rb2 {[%clk 0:09:07.3]} 37. Na1 {[%clk 0:06:58.5]} 37... Rh2
{[%clk 0:09:02.4]} 38. h6 {[%clk 0:06:58.6]} 38... gxh6 {[%clk 0:09:00.2]} 39.
f5 {[%clk 0:06:41.2]} 39... hxg5 {[%clk 0:08:56.1]} 40. f6 {[%clk 0:06:42.3]}
40... Kh8 {[%clk 0:08:51.3]} 41. Nb3 {[%clk 0:06:32.9]} 41... h5 {[%clk
0:08:44.3]} 42. Na1 {[%clk 0:05:42.4]} 42... g4 {[%clk 0:08:40.6]} 43. Nc2
{[%clk 0:05:38.1]} 43... a2 {[%clk 0:08:35.2]} 44. Kb2 {[%clk 0:04:43.3]} 44...
d5 {[%clk 0:08:33.1]} 45. Kb3 {[%clk 0:04:32.5]} 45... Bd6 {[%clk 0:08:17]} 46.
Nxb4 {[%clk 0:04:31.7]} 46... Bxb4 {[%clk 0:08:07.6]} 47. Kxb4 {[%clk
0:04:32.8]} 47... Rb2+ {[%clk 0:07:59.2]} 48. Kc5 {[%clk 0:02:47.8]} 48... Rb1
{[%clk 0:08:00]} 49. Rg2 {[%clk 0:02:32.6]} 49... a1=Q {[%clk 0:07:58.7]} 50.
Rh2 {[%clk 0:02:33.5]} 50... Rc1+ {[%clk 0:07:52.9]} 51. Kxd5 {[%clk 0:02:24.4]}
51... Kg8 {[%clk 0:07:53]} 52. Rxh5 {[%clk 0:02:12.5]} 52... Qa5+ {[%clk
0:07:52]} 0-1